fUSD/lending_fUSD_20250606
["ID","MTS","AMOUNT","RATE_DAILY","PERIOD"]
[364747759,1749227470096,-2686.8801686,0.00030158,2]
[364747760,1749227470105,-899.9,0.00030163,5]
[364747761,1749227470116,-317.34252888,0.00030163,5]
[364747762,1749227470125,-480.0,0.00030163,5]
[364747763,1749227470135,-480.0,0.00030163,5]
[364747764,1749227470144,-496.21,0.00030163,5]
[364747765,1749227470153,-480.0,0.00030163,5]
[364747766,1749227470162,-480.0,0.00030163,5]
[364747767,1749227470172,-480.0,0.00030163,5]
[364747768,1749227470181,-480.0,0.00030163,5]
[364747769,1749227470191,-480.0,0.00030163,5]
[364747770,1749227470201,-480.0,0.00030163,5]
[364747771,1749227470211,-480.0,0.00030163,5]
[364747772,1749227470220,-480.0,0.00030163,5]
[364747773,1749227470229,-514.39,0.00030163,5]
[364747774,1749227470238,-480.0,0.00030163,5]
[364747775,1749227470247,-602.08,0.00030163,5]
[364747776,1749227470256,-778.91,0.00030163,5]
[364747777,1749227470265,-942.67,0.00030163,5]
[364747778,1749227470275,-1093.12,0.00030163,5]
[364747779,1749227470284,-480.0,0.00030163,5]
[364747780,1749227470293,-483.5,0.00030163,5]
[364747781,1749227470302,-616.99,0.00030163,5]
[364747782,1749227470311,-299.41537911,0.00030163,5]
[364747783,1749227470321,-604.38,0.00030163,5]
[364747784,1749227470330,-480.0,0.00030163,5]
[364747785,1749227470339,-752.61,0.00030163,5]
[364747786,1749227470349,-480.0,0.00030163,5]
[364747787,1749227470358,-480.0,0.00030163,5]
[364747788,1749227470369,-517.27,0.00030163,5]
[364747789,1749227470378,-480.0,0.00030163,5]
[364747790,1749227470387,-660.66,0.00030163,5]
[364747791,1749227470396,-1167.43,0.00030163,5]
[364747792,1749227470405,-480.0,0.00030163,5]
[364747793,1749227470414,-480.0,0.00030163,5]
[364747794,1749227470423,-480.0,0.00030163,5]
[364747795,1749227470433,-480.0,0.00030163,5]
[364747796,1749227470442,-480.0,0.00030163,5]
[364747797,1749227470451,-1242.39,0.00030163,5]
[364747798,1749227470461,-480.0,0.00030163,5]
[364747799,1749227470470,-719.98,0.00030163,5]
[364747800,1749227470479,-480.0,0.00030163,5]
[364747801,1749227470488,-1683.43,0.00030163,5]
[364747802,1749227470497,-986.2,0.00030163,5]
[364747803,1749227470506,-492.17,0.00030163,5]
[364747804,1749227470516,-1089.77,0.00030163,5]
[364747805,1749227470526,-849.29,0.00030163,5]
[364747806,1749227470536,-625.79225979,0.00030163,5]
[364747807,1749227470546,-1140.16,0.00030163,5]
[364747808,1749227470555,-672.69,0.00030163,5]
[364747809,1749227470564,-480.0,0.00030163,5]
[364747810,1749227470573,-962.41,0.00030163,5]
[364747811,1749227470583,-480.0,0.00030163,5]
[364747812,1749227470592,-693.92,0.00030163,5]
[364747813,1749227470601,-690.87,0.00030163,5]
[364747814,1749227470610,-1794.747295,0.00030163,5]
[364747815,1749227470620,-480.0,0.00030163,5]
[364747816,1749227470630,-1070.56,0.00030163,5]
[364747817,1749227470639,-9465.44,0.00030163,5]
[364747818,1749227470649,-1610.06,0.00030163,5]
[364747819,1749227470658,-480.0,0.00030163,5]
[364747820,1749227470667,-73448.51,0.00030163,5]
[364747821,1749227470676,-1020.69,0.00030163,5]
[364747822,1749227470685,-3692.71,0.00030163,5]
[364747823,1749227470694,-1368.0,0.00030163,5]
[364747824,1749227470703,-480.0,0.00030163,5]
[364747825,1749227470712,-1150.85,0.00030163,5]
[364747826,1749227470721,-1896.103585,0.00030163,5]
[364747827,1749227470731,-480.0,0.00030163,5]
[364747828,1749227470740,-1280.22,0.00030163,5]
[364747829,1749227470750,-1356.53,0.00030163,5]
[364747830,1749227470759,-914.26,0.00030163,5]
[364747831,1749227470768,-480.0,0.00030163,5]
[364747832,1749227470778,-1493.12,0.00030163,5]
[364747833,1749227470788,-1953.69,0.00030163,5]
[364747834,1749227470797,-538.71418087,0.00030163,5]
[364747835,1749227470806,-480.0,0.00030163,5]
[364747836,1749227470820,-492.14,0.00030163,5]
[364747837,1749227470829,-770.69,0.00030163,5]
[364747838,1749227470839,-651.17,0.00030163,5]
[364747839,1749227470849,-3716.38,0.00030163,5]
[364747840,1749227470859,-2411.63,0.00030163,5]
[364747841,1749227470871,-556.78642225,0.00030163,5]
[364747842,1749227470880,-498.68,0.00030163,5]
[364747843,1749227470891,-798.12,0.00030163,2]
[364747844,1749227470901,-480.0,0.00030163,5]
[364747845,1749227470911,-1391.28,0.00030163,5]
[364747846,1749227470921,-4869.05,0.00030163,5]
[364747847,1749227470931,-1028.21,0.00030163,5]
[364747848,1749227470941,-1940.38,0.00030163,5]
[364747849,1749227470950,-480.0,0.00030163,5]
[364747850,1749227470960,-3304.43,0.00030163,5]
[364747851,1749227470969,-1323.14,0.00030163,5]
[364747852,1749227470978,-1107.08,0.00030163,5]
[364747853,1749227470988,-1563.7,0.00030163,5]
[364747854,1749227470998,-1807.27,0.00030163,5]
[364747855,1749227471008,-480.0,0.00030163,5]
[364747856,1749227471017,-5020.42,0.00030163,5]
[364747857,1749227471026,-1209.36,0.00030163,5]
[364747858,1749227471036,-3471.8,0.00030163,5]
[364747859,1749227471045,-480.0,0.00030163,5]
[364747860,1749227471054,-150.47777,0.00030163,5]
[364747861,1749227471064,-1414.46,0.00030163,5]
[364747862,1749227471073,-2190.57,0.00030163,5]
[364747863,1749227471083,-800.74,0.00030163,5]
[364747864,1749227471093,-480.0,0.00030163,5]
[364747865,1749227471102,-926.05,0.00030163,5]
[364747866,1749227471111,-1064.41,0.00030163,5]
[364747867,1749227471121,-480.0,0.00030163,5]
[364747868,1749227471130,-3312.09,0.00030163,5]
[364747869,1749227471139,-1585.13,0.00030163,5]
[364747870,1749227471149,-480.0,0.00030163,5]
[364747871,1749227471158,-1027.06,0.00030163,5]
[364747872,1749227471168,-397.07024598,0.00030163,5]
[364747873,1749227471177,-480.0,0.00030163,5]
[364747874,1749227471188,-10318.0,0.00030163,5]
[364747875,1749227471197,-2193.8,0.00030163,5]
[364747876,1749227471207,-480.0,0.00030163,5]
[364747877,1749227471217,-748.18,0.00030163,5]
[364747878,1749227471227,-185.23991,0.00030163,5]
[364747879,1749227471236,-499.32,0.00030163,5]
[364747880,1749227471245,-626.17,0.00030163,5]
[364747881,1749227471255,-484.78,0.00030163,5]
[364747882,1749227471264,-480.0,0.00030163,5]
[364747883,1749227471274,-480.0,0.00030163,5]
[364747884,1749227471283,-2333.39,0.00030163,5]
[364747885,1749227471293,-2793.02,0.00030163,5]
[364747886,1749227471302,-480.0,0.00030163,5]
[364747887,1749227471312,-480.0,0.00030163,5]
[364747888,1749227471321,-480.0,0.00030163,5]
[364747889,1749227471331,-159.15918,0.00030163,5]
[364747890,1749227471341,-4622.42,0.00030163,5]
[364747891,1749227471351,-2090.29,0.00030163,5]
[364747892,1749227471362,-781.66,0.00030163,5]
[364747893,1749227471376,-480.0,0.00030163,5]
[364747894,1749227471387,-1608.78,0.00030163,5]
[364747895,1749227471398,-484.06,0.00030163,5]
[364747896,1749227471408,-480.0,0.00030163,5]
[364747897,1749227471418,-1340.78,0.00030163,5]
[364747898,1749227471428,-731.94,0.00030163,5]
[364747899,1749227471437,-2052.89,0.00030163,5]
[364747900,1749227471447,-934.73,0.00030163,5]
[364747901,1749227471456,-950.85,0.00030163,5]
[364747902,1749227471466,-1137.5,0.00030163,5]
[364747903,1749227471476,-1902.15,0.00030163,5]
[364747904,1749227471486,-629.67,0.00030163,5]
[364747905,1749227471495,-158.777066,0.00030163,5]
[364747906,1749227471506,-480.0,0.00030163,5]
[364747907,1749227471515,-480.0,0.00030163,5]
[364747908,1749227471524,-607.58,0.00030163,5]
[364747909,1749227471533,-4122.08,0.00030163,5]
[364747910,1749227471542,-480.0,0.00030163,5]
[364747911,1749227471551,-2934.61,0.00030163,5]
[364747912,1749227471561,-5801.37,0.00030163,5]
[364747913,1749227471571,-480.0,0.00030163,5]
[364747914,1749227471581,-663.99,0.00030163,5]
[364747915,1749227471590,-480.0,0.00030163,5]
[364747916,1749227471599,-20866.89,0.00030163,5]
[364747917,1749227471609,-1043.81,0.00030163,5]
[364747918,1749227471618,-159.15918,0.00030163,5]
[364747919,1749227471627,-480.0,0.00030163,5]
[364747920,1749227471636,-3899.86,0.00030163,5]
[364747921,1749227471646,-763.68,0.00030163,5]
[364747922,1749227471655,-857.46,0.00030163,5]
[364747923,1749227471664,-7579.31,0.00030163,5]
[364747924,1749227471674,-2367.61,0.00030163,5]
[364747925,1749227471683,-480.0,0.00030163,5]
[364747926,1749227471692,-480.0,0.00030163,5]
[364747927,1749227471701,-480.0,0.00030163,5]
[364747928,1749227471711,-480.0,0.00030163,5]
[364747929,1749227471721,-480.0,0.00030163,5]
[364747930,1749227471730,-2450.88,0.00030163,5]
[364747931,1749227471740,-13894.46,0.00030163,5]
[364747932,1749227471749,-480.0,0.00030163,5]
[364747933,1749227471759,-480.0,0.00030163,5]
[364747934,1749227471769,-549.18638581,0.00030163,5]
[364747935,1749227471778,-500.0,0.00030164,7]
[364747936,1749227471788,-150.0,0.00030164,7]
[364747937,1749227471798,-500.0,0.00030164,7]
[364747938,1749227471809,-150.0,0.00030164,7]
[364747939,1749227471821,-150.0,0.00030164,7]
[364747940,1749227471830,-150.0,0.00030164,7]
[364747941,1749227471840,-500.0,0.00030164,7]
[364747942,1749227471849,-150.0,0.00030164,7]
[364747943,1749227471859,-150.0,0.00030164,7]
[364747944,1749227471869,-500.0,0.00030164,7]
[364747945,1749227471880,-150.0,0.00030164,7]
[364747946,1749227471890,-500.0,0.00030164,2]
[364747947,1749227471899,-500.0,0.00030164,7]
[364747948,1749227471907,-500.0,0.00030164,7]
[364747949,1749227471916,-150.0,0.00030164,7]
[364747950,1749227471926,-500.0,0.00030164,2]
[364747951,1749227471935,-1706.0,0.00030164,7]
[364747952,1749227471945,-150.0,0.00030164,7]
[364747953,1749227471954,-150.0,0.00030164,2]
[364747954,1749227471963,-10037.8172433,0.00030164,2]
[364747955,1749227471972,-500.0,0.00030164,7]
[364747956,1749227471982,-1249.0,0.00030164,7]
[364747957,1749227471991,-3141.0380501,0.00030164,2]
[364747958,1749227472000,-150.0,0.00030164,7]
[364747959,1749227472009,-500.0,0.00030164,7]
[364747960,1749227472018,-150.0,0.00030164,7]
[364747961,1749227472038,-150.0,0.00030164,7]
[364747962,1749227472047,-150.0,0.00030164,7]
[364747963,1749227472056,-1512.5323569,0.00030164,2]
[364747964,1749227472066,-500.0,0.00030164,7]
[364747965,1749227472076,-150.0,0.00030164,2]
[364747966,1749227472085,-500.0,0.00030164,7]
[364747967,1749227472094,-150.0,0.00030164,7]
[364747968,1749227472104,-500.0,0.00030164,7]
[364747969,1749227472114,-500.0,0.00030164,7]
[364747970,1749227472126,-500.0,0.00030164,7]
[364747971,1749227472135,-150.0,0.00030164,7]
[364747972,1749227472145,-500.0,0.00030164,7]
[364747973,1749227472154,-500.0,0.00030164,7]
[364747974,1749227472163,-429.0,0.00030164,7]
[364747975,1749227472172,-500.0,0.00030164,7]
[364747976,1749227472182,-150.0,0.00030164,7]
[364747977,1749227472191,-150.0,0.00030164,7]
[364747978,1749227472201,-500.0,0.00030164,7]
[364747979,1749227472211,-500.0,0.00030164,7]
[364747980,1749227472221,-150.0,0.0003017,7]
[364747981,1749227472231,-3114.45,0.00030172,7]
[364747982,1749227472241,-500.0,0.00030173,5]
[364747983,1749227472250,-500.0,0.00030173,5]
[364747984,1749227472260,-506.74011738,0.00030173,5]
[364747985,1749227472270,-506.86388459,0.00030173,5]
[364747986,1749227472279,-173.22715546,0.00030173,5]
[364747987,1749227472289,-480.0,0.00030173,5]
[364747988,1749227472298,-480.0,0.00030173,5]
[364747989,1749227472307,-480.0,0.00030173,5]
[364747990,1749227472316,-480.0,0.00030173,5]
[364747991,1749227472325,-480.0,0.00030173,5]
[364747992,1749227472334,-480.0,0.00030173,5]
[364747993,1749227472344,-480.0,0.00030173,5]
[364747994,1749227472354,-480.0,0.00030173,5]
[364747995,1749227472363,-480.0,0.00030173,5]
[364747996,1749227472374,-480.0,0.00030173,5]
[364747997,1749227472383,-480.0,0.00030173,5]
[364747998,1749227472392,-480.0,0.00030173,5]
[364747999,1749227472402,-364.24957182,0.00030173,5]
[364748000,1749227472411,-480.0,0.00030173,5]
[364748001,1749227472421,-480.0,0.00030173,5]
[364748002,1749227472430,-482.44,0.00030173,5]
[364748003,1749227472440,-480.0,0.00030173,5]
[364748004,1749227472449,-626.84067131,0.00030173,5]
[364748005,1749227472458,-480.0,0.00030173,5]
[364748006,1749227472468,-618.15788722,0.00030173,5]
[364748007,1749227472477,-480.0,0.00030173,5]
[364748008,1749227472487,-480.0,0.00030173,5]
[364748009,1749227472496,-480.0,0.00030173,5]
[364748010,1749227472505,-480.0,0.00030173,5]
[364748011,1749227472514,-480.0,0.00030173,5]
[364748012,1749227472523,-480.0,0.00030173,5]
[364748013,1749227472533,-480.0,0.00030173,5]
[364748014,1749227472542,-295.16793835,0.00030173,5]
[364748015,1749227472552,-480.0,0.00030173,5]
[364748016,1749227472561,-480.0,0.00030173,5]
[364748017,1749227472570,-625.76162546,0.00030173,5]
[364748018,1749227472580,-600.0,0.00030173,30]
[364748019,1749227472590,-966.29,0.00030173,5]
[364748020,1749227472599,-480.0,0.00030173,5]
[364748021,1749227472608,-480.0,0.00030173,5]
[364748022,1749227472620,-480.0,0.00030173,5]
[364748023,1749227472630,-568.18,0.00030173,5]
[364748024,1749227472639,-480.0,0.00030173,5]
[364748025,1749227472648,-480.0,0.00030173,5]
[364748026,1749227472658,-480.0,0.00030173,5]
[364748027,1749227472889,-480.0,0.00030173,5]
[364748028,1749227472900,-480.0,0.00030173,5]
[364748029,1749227472910,-480.0,0.00030173,5]
[364748030,1749227472919,-480.0,0.00030173,5]
[364748031,1749227472929,-480.0,0.00030173,5]
[364748032,1749227472938,-298.05959272,0.00030173,5]
[364748033,1749227472947,-740.56,0.00030173,5]
[364748034,1749227472957,-511.33,0.00030173,5]
[364748035,1749227472967,-480.0,0.00030173,5]
[364748036,1749227472976,-365.144635,0.00030173,5]
[364748037,1749227472986,-480.0,0.00030173,5]
[364748038,1749227472996,-480.0,0.00030173,5]
[364748039,1749227473005,-480.0,0.00030173,5]
[364748040,1749227473014,-480.0,0.00030173,5]
[364748041,1749227473023,-480.0,0.00030173,5]
[364748042,1749227473032,-480.0,0.00030173,5]
[364748043,1749227473041,-480.0,0.00030173,5]
[364748044,1749227473050,-480.0,0.00030173,5]
[364748045,1749227473059,-480.0,0.00030173,5]
[364748046,1749227473069,-480.0,0.00030173,5]
[364748047,1749227473078,-480.0,0.00030173,5]
[364748048,1749227473088,-480.0,0.00030173,5]
[364748049,1749227473097,-480.0,0.00030173,5]
[364748050,1749227473106,-1052.1,0.00030173,5]
[364748051,1749227473115,-480.0,0.00030173,5]
[364748052,1749227473126,-634.64,0.00030173,5]
[364748053,1749227473135,-480.0,0.00030173,5]
[364748054,1749227473145,-1993.76,0.00030173,5]
[364748055,1749227473154,-480.0,0.00030173,5]
[364748056,1749227473163,-225.7,0.00030173,5]
[364748057,1749227473172,-5891.5,0.00030173,5]
[364748058,1749227473182,-480.0,0.00030173,5]
[364748059,1749227473191,-653.09,0.00030173,5]
[364748060,1749227473200,-535.71,0.00030173,5]
[364748061,1749227473210,-3595.0,0.00030173,5]
[364748062,1749227473219,-480.0,0.00030173,5]
[364748063,1749227473229,-480.0,0.00030173,5]
[364748064,1749227473238,-480.0,0.00030173,5]
[364748065,1749227473249,-9081.59,0.00030173,5]
[364748066,1749227473258,-967.73,0.00030173,5]
[364748067,1749227473267,-480.0,0.00030173,5]
[364748068,1749227473277,-480.0,0.00030173,5]
[364748069,1749227473286,-4161.62,0.00030173,5]
[364748070,1749227473295,-480.0,0.00030173,5]
[364748071,1749227473305,-500.0,0.00030173,5]
[364748072,1749227473314,-2214.57,0.00030173,5]
[364748073,1749227473324,-1000.0,0.00030173,5]
[364748074,1749227473333,-328.43477867,0.00030173,5]
[364748075,1749227473343,-855.23,0.00030173,5]
[364748076,1749227473352,-480.0,0.00030173,5]
[364748077,1749227473362,-3706.72,0.00030173,5]
[364748078,1749227473373,-480.0,0.00030173,5]
[364748079,1749227473384,-480.0,0.00030173,5]
[364748080,1749227473393,-460.0,0.00030173,5]
[364748081,1749227473403,-480.0,0.00030173,5]
[364748082,1749227473413,-12889.28,0.00030173,5]
[364748083,1749227473422,-480.0,0.00030173,5]
[364748084,1749227473432,-1763.31,0.00030173,5]
[364748085,1749227473441,-480.0,0.00030173,5]
[364748086,1749227473451,-480.0,0.00030173,5]
[364748087,1749227473460,-1503.07,0.00030173,5]
[364748088,1749227473470,-403.82998113,0.00030173,5]
[364748089,1749227473479,-480.0,0.00030173,5]
[364748090,1749227473488,-480.0,0.00030173,5]
[364748091,1749227473498,-1036.12,0.00030173,5]
[364748092,1749227473507,-1295.79,0.00030173,5]
[364748093,1749227473516,-480.0,0.00030173,5]
[364748094,1749227473526,-480.0,0.00030173,5]
[364748095,1749227473535,-480.0,0.00030173,5]
[364748096,1749227473545,-601.38,0.00030173,5]
[364748097,1749227473554,-480.0,0.00030173,5]
[364748098,1749227473564,-1374.52,0.00030173,5]
[364748099,1749227473573,-480.0,0.00030173,5]
[364748100,1749227473583,-480.0,0.00030173,5]
[364748101,1749227473593,-610.9,0.00030173,5]
[364748102,1749227473602,-480.0,0.00030173,5]
[364748103,1749227473612,-15975.47,0.00030173,5]
[364748104,1749227473623,-480.0,0.00030173,5]
[364748105,1749227473633,-479.37959101,0.00030173,5]
[364748106,1749227473642,-480.0,0.00030173,5]
[364748107,1749227473652,-2179.35,0.00030173,5]
[364748108,1749227473662,-678.4,0.00030173,5]
[364748109,1749227473672,-480.0,0.00030173,5]
[364748110,1749227473682,-899.39,0.00030173,5]
[364748111,1749227473692,-480.0,0.00030173,5]
[364748112,1749227473702,-1719.81,0.00030173,5]
[364748113,1749227473712,-480.0,0.00030173,5]
[364748114,1749227473722,-480.0,0.00030173,5]
[364748115,1749227473732,-480.0,0.00030173,5]
[364748116,1749227473742,-801.0,0.00030173,2]
[364748117,1749227473751,-636.0,0.00030173,2]
[364748118,1749227473760,-589.0,0.00030173,2]
[364748119,1749227473770,-1274.0,0.00030173,2]
[364748120,1749227473779,-557.0,0.00030173,2]
[364748121,1749227473788,-926.0,0.00030173,2]
[364748122,1749227473797,-1999.0,0.00030173,2]
[364748123,1749227473807,-1254.0,0.00030173,2]
[364748124,1749227473818,-1158.0,0.00030173,2]
[364748125,1749227473827,-155.0,0.00030173,2]
[364748126,1749227473837,-4081.0,0.00030173,2]
[364748127,1749227473847,-7017.0,0.00030173,2]
[364748128,1749227473858,-1164.0,0.00030173,2]
[364748129,1749227473869,-944.0,0.00030173,2]
[364748130,1749227473880,-150.0,0.00030173,7]
[364748131,1749227473890,-150.0,0.00030175,7]
[364748132,1749227473899,-3114.45,0.00030184,7]
[364748133,1749227473909,-150.0,0.00030185,7]
[364748134,1749227473919,-124429.13794348,0.00030185,2]
[364748135,1749227473931,-151.0,0.00030185,7]
[364748136,1749227473941,-480.0,0.00030185,5]
[364748137,1749227473951,-480.0,0.00030185,5]
[364748138,1749227473961,-480.0,0.00030185,5]
[364748139,1749227473971,-318.82439043,0.00030185,5]
[364748140,1749227473981,-480.0,0.00030185,5]
[364748141,1749227473991,-480.0,0.00030185,5]
[364748142,1749227474000,-480.0,0.00030185,5]
[364748143,1749227474010,-1889.97,0.00030185,5]
[364748144,1749227474019,-480.0,0.00030185,5]
[364748145,1749227474029,-550.09,0.00030185,5]
[364748146,1749227474039,-527.97,0.00030185,5]
[364748147,1749227474048,-1427.75,0.00030185,5]
[364748148,1749227474057,-623.29,0.00030185,5]
[364748149,1749227474067,-837.05,0.00030185,5]
[364748150,1749227474077,-1092.01,0.00030185,5]
[364748151,1749227474087,-777.13,0.00030185,5]
[364748152,1749227474096,-480.0,0.00030185,5]
[364748153,1749227474106,-1290.81,0.00030185,5]
[364748154,1749227474115,-806.85,0.00030185,5]
[364748155,1749227474129,-1309.04,0.00030185,5]
[364748156,1749227474138,-480.0,0.00030185,5]
[364748157,1749227474147,-1370.18,0.00030185,5]
[364748158,1749227474156,-609.3,0.00030185,5]
[364748159,1749227474166,-950.48,0.00030185,5]
[364748160,1749227474176,-480.0,0.00030185,5]
[364748161,1749227474186,-756.68,0.00030185,5]
[364748162,1749227474195,-768.9,0.00030185,5]
[364748163,1749227474204,-480.0,0.00030185,5]
[364748164,1749227474214,-996.18,0.00030185,5]
[364748165,1749227474223,-480.0,0.00030185,5]
[364748166,1749227474232,-480.0,0.00030185,5]
[364748167,1749227474241,-565.52,0.00030185,5]
[364748168,1749227474250,-504.93524171,0.00030185,5]
[364748169,1749227474259,-480.0,0.00030185,5]
[364748170,1749227474268,-480.0,0.00030185,5]
[364748171,1749227474278,-480.0,0.00030185,5]
[364748172,1749227474287,-1078.44,0.00030185,5]
[364748173,1749227474296,-480.0,0.00030185,5]
[364748174,1749227474305,-1292.15,0.00030185,5]
[364748175,1749227474315,-754.92,0.00030185,5]
[364748176,1749227474325,-916.88,0.00030185,5]
[364748177,1749227474335,-480.0,0.00030185,5]
[364748178,1749227474344,-871.22,0.00030185,5]
[364748179,1749227474353,-764.22,0.00030185,5]
[364748180,1749227474363,-886.9,0.00030185,5]
[364748181,1749227474374,-937.02,0.00030185,5]
[364748182,1749227474383,-1986.83,0.00030185,5]
[364748183,1749227474393,-601.23,0.00030185,5]
[364748184,1749227474402,-861.69,0.00030185,5]
[364748185,1749227474411,-480.0,0.00030185,5]
[364748186,1749227474420,-208.76,0.00030185,5]
[364748187,1749227474429,-480.0,0.00030185,5]
[364748188,1749227474438,-530.48,0.00030185,5]
[364748189,1749227474447,-987.41,0.00030185,5]
[364748190,1749227474457,-1068.48,0.00030185,5]
[364748191,1749227474466,-822.76,0.00030185,5]
[364748192,1749227474476,-1114.8,0.00030185,5]
[364748193,1749227474485,-1960.08,0.00030185,5]
[364748194,1749227474495,-822.84,0.00030185,5]
[364748195,1749227474504,-4079.81,0.00030185,5]
[364748196,1749227474514,-536.39,0.00030185,5]
[364748197,1749227474523,-1694.55,0.00030185,5]
[364748198,1749227474533,-2260.71,0.00030185,5]
[364748199,1749227474542,-480.0,0.00030185,5]
[364748200,1749227474552,-1968.73,0.00030185,5]
[364748201,1749227474561,-1126.23,0.00030185,5]
[364748202,1749227474571,-2346.11,0.00030185,5]
[364748203,1749227474581,-608.71,0.00030185,5]
[364748204,1749227474590,-1228.25,0.00030185,5]
[364748205,1749227474600,-166.1773604,0.00030185,5]
[364748206,1749227474610,-715.37,0.00030185,5]
[364748207,1749227474620,-552.57,0.00030185,5]
[364748208,1749227474630,-1042.77,0.00030185,5]
[364748209,1749227474640,-480.0,0.00030185,5]
[364748210,1749227474650,-874.37,0.00030185,5]
[364748211,1749227474660,-480.0,0.00030185,5]
[364748212,1749227474669,-480.0,0.00030185,5]
[364748213,1749227474679,-480.0,0.00030185,5]
[364748214,1749227474689,-643.42,0.00030185,5]
[364748215,1749227474698,-480.0,0.00030185,5]
[364748216,1749227474708,-495.39431166,0.00030185,5]
[364748217,1749227474718,-4587.21,0.00030191,5]
[364748218,1749227474728,-1698.9,0.00030191,5]
[364748219,1749227474739,-795.67,0.00030191,5]
[364748220,1749227474750,-1782.25,0.00030191,5]
[364748221,1749227474764,-897.82,0.00030191,5]
[364748222,1749227474775,-950.52,0.00030191,5]
[364748223,1749227474788,-1314.64,0.00030191,5]
[364748224,1749227474799,-808.41,0.00030191,5]
[364748225,1749227474811,-4664.58,0.00030191,5]
[364748226,1749227474825,-573.94,0.00030191,5]
[364748227,1749227474835,-1107.97,0.00030191,5]
[364748228,1749227474845,-4442.11,0.00030191,5]
[364748229,1749227474855,-757.84,0.00030191,5]
[364748230,1749227474864,-480.0,0.00030191,5]
[364748231,1749227474877,-1235.4,0.00030191,5]
[364748232,1749227474887,-879.42,0.00030191,5]
[364748233,1749227474902,-1063.27,0.00030191,5]
[364748234,1749227474912,-707.79,0.00030191,2]
[364748235,1749227474922,-2227.4,0.00030191,5]
[364748236,1749227474933,-884.44,0.00030191,5]
[364748237,1749227474944,-949.13,0.00030191,2]
[364748238,1749227474960,-1185.65,0.00030191,5]
[364748239,1749227474970,-785.68,0.00030191,5]
[364748240,1749227474980,-500.0,0.00030191,7]
[364748241,1749227474990,-150.0,0.00030191,7]
[364748242,1749227475000,-500.0,0.00030191,7]
[364748243,1749227475010,-150.0,0.00030191,7]
[364748244,1749227475020,-150.0,0.00030191,7]
[364748245,1749227475029,-150.0,0.00030191,7]
[364748246,1749227475039,-500.0,0.00030191,7]
[364748247,1749227475048,-150.0,0.00030191,7]
[364748248,1749227475057,-150.0,0.00030191,7]
[364748249,1749227475067,-500.0,0.00030191,7]
[364748250,1749227475080,-150.0,0.00030191,7]
[364748251,1749227475089,-500.0,0.00030191,2]
[364748252,1749227475099,-500.0,0.00030191,7]
[364748253,1749227475109,-500.0,0.00030191,7]
[364748254,1749227475120,-500.0,0.00030191,2]
[364748255,1749227475130,-1706.0,0.00030191,7]
[364748256,1749227475139,-150.0,0.00030191,7]
[364748257,1749227475149,-500.0,0.00030191,7]
[364748258,1749227475160,-1249.0,0.00030191,7]